fUSD/lending_fUSD_20240910
["ID","MTS","AMOUNT","RATE_DAILY","PERIOD"]
[337733210,1725991832417,-500.0,0.000122,2]
[337733211,1725991832427,-26.90931798,0.000122,2]
[337733212,1725991832438,-473.09068202,0.000122,2]
[337733213,1725991832448,-500.0,0.000122,2]
[337733214,1725991832459,-500.0,0.000122,2]
[337733215,1725991832468,-354.82004159,0.000122,2]
[337733216,1725991832479,-145.17995841,0.000122,2]
[337733217,1725991832489,-500.0,0.000122,2]
[337733218,1725991832499,-421.97001244,0.000122,2]
[337733219,1725991832509,-4067.95659312,0.000122,2]
[337733220,1725991832519,-172.09,0.00012341,2]
[337733221,1725991832529,-251.06,0.00012423,2]
[337733222,1725991832538,-308.9,0.000125,2]
[337733223,1725991832549,-998.76,0.000125,2]
[337733224,1725991832560,-5858.0,0.00012621,2]
[337733225,1725991832570,-9307.0,0.00012621,2]
[337733226,1725991832580,-1144.0,0.00012621,2]
[337733227,1725991832589,-150.0,0.00012621,2]
[337733228,1725991832599,-1079.0,0.00012621,2]
[337733229,1725991832610,-1547.0,0.0001263,2]
[337733230,1725991832619,-447.0,0.0001263,2]
[337733231,1725991832628,-1260.0,0.0001263,2]
[337733232,1725991832637,-624.0,0.0001263,2]
[337733233,1725991832646,-150.0,0.0001263,2]
[337733234,1725991832656,-557.0,0.0001263,2]
[337733235,1725991832665,-207.827,0.0001263,2]
[337733236,1725991832674,-810.0,0.0001263,2]
[337733237,1725991832684,-931.0,0.0001263,2]
[337733238,1725991832693,-553.0,0.0001263,2]
[337733239,1725991832702,-1900.0,0.0001263,2]
[337733240,1725991832711,-1923.0,0.0001263,2]
[337733241,1725991832719,-805.0,0.0001263,2]
[337733243,1725991832729,-3342.0,0.0001263,2]
[337733245,1725991832738,-248.0,0.0001263,2]
[337733247,1725991832748,-1119.0,0.0001263,2]
[337733250,1725991832757,-499.99,0.0001263,2]
[337733252,1725991832767,-843.8,0.000127,2]
[337733254,1725991832777,-499.99,0.00012715,2]
[337733256,1725991832788,-9999.99,0.00012715,2]
[337733258,1725991832798,-1486.82,0.00012715,2]
[337733260,1725991832809,-14947.53905797,0.00012715,2]
[337733261,1725991832821,-5646.10094203,0.00012715,2]
[337733262,1725991832830,-286.86,0.00012715,2]
[337733263,1725991832840,-150.0,0.00012728,2]
[337733264,1725991832851,-150.0,0.00012729,2]
[337733265,1725991832861,-150.0,0.00012732,2]
[337733266,1725991832871,-150.0,0.00012734,2]
[337733267,1725991832880,-150.0,0.00012737,2]
[337733268,1725991832889,-150.0,0.0001274,2]
[337733269,1725991832898,-150.0,0.00012741,2]
[337733270,1725991832908,-150.0,0.00012742,2]
[337733271,1725991832918,-78.03905797,0.00012753,2]
[337733272,1725991832930,-71.96094203,0.00012753,2]
[337733273,1725991832940,-150.0,0.00012757,2]
[337733274,1725991832949,-150.0,0.00012759,2]
[337733275,1725991832959,-150.0,0.0001277,2]
[337733276,1725991832968,-150.0,0.0001277,2]
[337733277,1725991832978,-150.0,0.00012773,2]
[337733278,1725991832987,-150.0,0.00012773,2]
[337733279,1725991832997,-6.66895476,0.00012774,2]
[337733280,1725991833008,-143.33104524,0.00012774,2]
[337733281,1725991833018,-150.0,0.00012786,2]
[337733282,1725991833028,-150.0,0.00012788,2]
[337733283,1725991833037,-150.0,0.0001279,2]
[337733284,1725991833047,-93.37409243,0.00012796,2]
[337733285,1725991833059,-56.62590757,0.00012796,2]
[337733286,1725991833068,-150.0,0.00012801,2]
[337733287,1725991833077,-150.0,0.00012809,2]
[337733288,1725991833087,-150.0,0.00012814,2]
[337733289,1725991833097,-150.0,0.00012815,2]
[337733290,1725991833109,-150.0,0.00012815,2]
[337733291,1725991833119,-150.0,0.00012816,2]
[337733292,1725991833128,-150.0,0.00012817,2]
[337733293,1725991833139,-25.76131768,0.0001282,2]
[337733294,1725991833152,-124.23868232,0.0001282,2]
[337733295,1725991833161,-150.0,0.00012821,2]
[337733296,1725991833171,-28.81784172,0.00012824,2]
[337733297,1725991833188,-121.18215828,0.00012824,2]
[337733298,1725991833198,-150.0,0.0001283,2]
[337733299,1725991833208,-150.0,0.00012844,2]
[337733300,1725991833218,-150.0,0.00012845,2]
[337733301,1725991833227,-150.0,0.00012852,2]
[337733302,1725991833237,-150.0,0.00012855,2]
[337733303,1725991833247,-150.0,0.00012859,2]
[337733304,1725991833257,-150.0,0.00012864,2]
[337733305,1725991833266,-349.11737599,0.00012866,2]
[337733306,1725991833276,-150.0,0.00012866,2]
[337733307,1725991833285,-500.0,0.00012868,2]
[337733308,1725991833295,-204.39729,0.0001287,2]
[337733309,1725991833305,-150.0,0.0001287,2]
[337733310,1725991833315,-500.0,0.00012877,2]
[337733311,1725991833324,-500.0,0.00012877,2]
[337733312,1725991833334,-150.0,0.00012881,2]
[337733313,1725991833344,-150.0,0.00012883,2]
[337733314,1725991833355,-500.0,0.00012885,2]
[337733315,1725991833366,-150.0,0.00012889,2]
[337733316,1725991833376,-150.0,0.0001289,2]
[337733317,1725991833386,-150.0,0.00012893,2]
[337733318,1725991833396,-500.0,0.00012894,2]
[337733319,1725991833405,-730.30317573,0.00012899,2]
[337733320,1725991833418,-4548.09399337,0.00012899,2]
[337733321,1725991833433,-14625.68180812,0.00012899,2]
[337733322,1725991833443,-177.56180833,0.000129,2]
[337733323,1725991833453,-185.73578068,0.000129,2]
[337733324,1725991833463,-1000.0,0.000129,2]
[337733325,1725991833473,-221.61260684,0.000129,2]
[337733326,1725991833482,-1621.64439097,0.000129,2]
[337733327,1725991833491,-195.41495944,0.000129,2]
[337733328,1725991833501,-150.0,0.00012902,2]
[337733329,1725991833512,-150.0,0.00012902,2]
[337733330,1725991833521,-500.0,0.00012903,2]
[337733331,1725991833531,-500.0,0.00012912,2]
[337733332,1725991833541,-150.0,0.00012914,2]
[337733333,1725991833551,-150.0,0.00012916,2]
[337733334,1725991833561,-150.0,0.00012916,2]
[337733335,1725991833571,-150.0,0.00012918,2]
[337733336,1725991833580,-150.0,0.0001292,2]
[337733337,1725991833590,-500.0,0.00012921,2]
[337733338,1725991833601,-150.0,0.00012928,2]
[337733339,1725991833610,-500.0,0.00012929,2]
[337733340,1725991833620,-150.0,0.00012931,2]
[337733341,1725991833630,-150.0,0.00012932,2]
[337733342,1725991833640,-150.0,0.00012936,2]
[337733343,1725991833649,-500.0,0.00012938,2]
[337733344,1725991833659,-500.0,0.00012947,2]
[337733345,1725991833668,-274.23202314,0.00012951,2]
[337733346,1725991833677,-150.0,0.00012954,2]
[337733347,1725991833687,-500.0,0.00012956,2]
[337733348,1725991833696,-150.0,0.00012958,2]
[337733349,1725991833706,-150.0,0.00012964,2]
[337733350,1725991833715,-150.0,0.00012964,2]
[337733351,1725991833725,-150.0,0.00012964,2]
[337733352,1725991833734,-500.0,0.00012965,2]
[337733353,1725991833744,-150.0,0.00012967,2]
[337733354,1725991833752,-500.0,0.00012973,2]
[337733355,1725991833762,-150.0,0.00012975,2]
[337733356,1725991833772,-150.0,0.0001298,2]
[337733357,1725991833782,-150.0,0.00012981,2]
[337733358,1725991833791,-150.0,0.00012982,2]
[337733359,1725991833802,-500.0,0.00012982,2]
[337733360,1725991833812,-150.0,0.00012989,2]
[337733361,1725991833822,-160.95,0.0001299,2]
[337733362,1725991833832,-500.0,0.00012991,2]
[337733363,1725991833843,-150.0,0.00012992,2]
[337733364,1725991833854,-150.0,0.00012993,2]
[337733365,1725991833864,-150.0,0.00012994,2]
[337733366,1725991833874,-150.0,0.00012995,2]
[337733367,1725991833884,-150.0,0.00012996,2]
[337733368,1725991833894,-11696.05980968,0.00012997,2]
[337733369,1725991833906,-835.76890851,0.00012997,2]
[337733370,1725991833919,-1092.85082834,0.00012997,2]
[337733371,1725991833931,-2686.65209013,0.00012997,2]
[337733372,1725991833943,-8774.31523528,0.00012997,2]
[337733373,1725991833955,-83006.0879398,0.00012997,2]
[337733374,1725991833966,-150.0,0.00012998,2]
[337733375,1725991833976,-186.3954951,0.00012999,2]
[337733376,1725991833986,-571.0,0.00013,2]
[337733377,1725991833996,-105030.43506716,0.00013,2]
[337733378,1725991834006,-5759.39201313,0.00013,2]
[337733379,1725991838412,-150.01,0.00012999,2]
[337733380,1725991838425,-775.55170541,0.00013,2]
[337733381,1725991838514,-2644.17619719,0.00013,2]
[337733382,1725991838525,-292.45900093,0.00013,2]
[337733383,1725991838611,-99520.44682553,0.00013,2]
[337733384,1725991838621,-151.0,0.00013,2]
[337733385,1725991838631,-151.0,0.00013,2]
[337733386,1725991838640,-151.0,0.00013,2]
[337733387,1725991838650,-1000.0,0.00013,2]
[337733388,1725991838659,-1000.0,0.00013,2]
[337733389,1725991838668,-1000.0,0.00013,2]
[337733390,1725991838678,-1000.0,0.00013,2]
[337733391,1725991838687,-1000.0,0.00013,2]
[337733392,1725991838696,-1000.0,0.00013,2]
[337733393,1725991838706,-1000.0,0.00013,2]
[337733395,1725991838716,-1000.0,0.00013,2]
[337733397,1725991838725,-1000.0,0.00013,2]
[337733398,1725991838734,-1000.0,0.00013,2]
[337733400,1725991838746,-1000.0,0.00013,2]
[337733402,1725991838756,-1000.0,0.00013,2]
[337733404,1725991838766,-1000.0,0.00013,2]
[337733406,1725991838775,-1000.0,0.00013,2]
[337733408,1725991838784,-1000.0,0.00013,2]
[337733410,1725991838794,-1000.0,0.00013,2]
[337733411,1725991838803,-1000.0,0.00013,2]
[337733413,1725991838812,-1000.0,0.00013,2]
[337733415,1725991838822,-1000.0,0.00013,2]
[337733417,1725991838831,-1000.0,0.00013,2]
[337733419,1725991838840,-1000.0,0.00013,2]
[337733421,1725991838850,-1000.0,0.00013,2]
[337733422,1725991838861,-1000.0,0.00013,2]
[337733424,1725991838870,-1000.0,0.00013,2]
[337733426,1725991838880,-1000.0,0.00013,2]
[337733428,1725991838889,-1000.0,0.00013,2]
[337733430,1725991838899,-1000.0,0.00013,2]
[337733432,1725991838911,-1000.0,0.00013,2]
[337733433,1725991838921,-1000.0,0.00013,2]
[337733435,1725991838930,-1000.0,0.00013,2]
[337733437,1725991838939,-1000.0,0.00013,2]
[337733439,1725991838949,-1000.0,0.00013,2]
[337733441,1725991838958,-1000.0,0.00013,2]
[337733442,1725991838967,-332.0,0.00013,2]
[337733444,1725991838977,-200.0,0.00013,2]
[337733446,1725991838986,-1000.0,0.00013,2]
[337733448,1725991838996,-1000.0,0.00013,2]
[337733450,1725991839005,-1000.0,0.00013,2]
[337733452,1725991839015,-1000.0,0.00013,2]
[337733453,1725991839024,-1000.0,0.00013,2]
[337733455,1725991839036,-1000.0,0.00013,2]
[337733457,1725991839047,-598.0,0.00013,2]
[337733459,1725991839058,-1000.0,0.00013,2]
[337733461,1725991839067,-1000.0,0.00013,2]
[337733463,1725991839078,-683075.39831976,0.00013,2]
[337733481,1725991840391,-513.0,0.00013,2]
[337733482,1725991840401,-347.329992,0.00013,2]
[337733483,1725991840412,-1505.04594099,0.00013,2]
[337733484,1725991840521,-6564.8223725,0.00013,2]
[337733485,1725991840532,-1539.999995,0.00013,2]
[337733486,1725991840548,-435.92970156,0.00013,2]
[337733487,1725991840881,-5859.46811615,0.00013,2]
[337733490,1725991843352,-603.56506181,0.00013,2]
[337733495,1725991843853,-382.92113158,0.00013,2]
[337733496,1725991843867,-549.729413,0.00013,2]
[337733497,1725991843878,-642.70249532,0.00013,2]
[337733498,1725991843890,-484666.08024162,0.00013,2]
[337733499,1725991843901,-1503.0,0.00013,2]
[337733500,1725991843912,-1109.25964547,0.00013,2]
[337733537,1725991857268,425.73507072,0.00011988,2]
[337733538,1725991869220,323.45,0.00011233,2]
[337733539,1725991869466,323.45,0.00011236,2]
[337733540,1725991869836,323.45,0.00011239,2]
[337733541,1725991870048,323.45,0.00011242,2]
[337733542,1725991870304,323.45,0.00011245,2]
[337733543,1725991870744,323.45,0.00011248,2]
[337733544,1725991871016,323.45,0.00011251,2]
[337733545,1725991871422,323.45,0.00011254,2]
[337733546,1725991871683,323.45,0.00011257,2]
[337733547,1725991871919,323.45,0.0001126,2]
[337733548,1725991872164,323.45,0.00011263,2]
[337733549,1725991872428,323.45,0.00011266,2]
[337733550,1725991872655,323.45,0.00011269,2]
[337733551,1725991873029,323.45,0.00011272,2]
[337733552,1725991873279,323.45,0.00011275,2]
[337733553,1725991873513,323.45,0.00011278,2]
[337733554,1725991873938,323.45,0.00011281,2]
[337733555,1725991874185,323.45,0.00011284,2]
[337733556,1725991874405,323.45,0.00011287,2]
[337733557,1725991874657,323.45,0.00011289,2]
[337733558,1725991891310,150.0,0.00027702,120]
[337733560,1725991956272,500.0,0.00028,120]
[337733561,1725991956517,574.52670631,0.00028,120]
[337733562,1725991977538,172.06,0.00011233,2]
[337733563,1725991994493,250.0,0.00011233,2]
[337733564,1725992010573,150.0,0.00026667,120]
[337733565,1725992024450,347.66494517,0.00028,120]
[337733566,1725992190535,150.0,0.00026947,120]
[337733567,1725992250833,150.0,0.00027672,120]
[337733568,1725992356954,163.72,0.00012,2]
[337733569,1725992406926,1000.0,0.00011986,2]
[337733570,1725992430543,150.0,0.00022702,120]
[337733571,1725992467688,272.9929945,0.00028,120]
[337733572,1725992490557,150.0,0.00025533,120]
[337733573,1725992574070,153.8,9.315e-05,2]
[337733574,1725992589044,284.50499815,0.00028,120]
[337733575,1725992610515,150.0,0.00025581,120]
[337733576,1725992629116,1000.0,0.00026,60]
[337733577,1725992638359,250.0,0.00011866,2]
[337733578,1725992706432,250.0,0.00011233,2]
[337733579,1725992730816,150.0,0.00015753,120]
[337733580,1725992791075,150.0,0.00020639,120]
[337733626,1725992910755,150.0,0.00021371,120]
[337733631,1725992918206,200.85,0.00011813,2]
[337733639,1725992970676,150.0,0.00015901,120]
[337733640,1725992985321,851.15,0.00011907,2]
[337733645,1725993031500,-263.11,0.00012058,2]
[337733646,1725993031510,-218.62,0.00012105,2]
[337733647,1725993031519,-302.61351086,0.00012178,2]
[337733648,1725993031531,-135.38648914,0.00012178,2]
[337733649,1725993031540,-150.0,0.00012179,2]
[337733651,1725993031550,-300.0,0.00012179,2]
[337733653,1725993031561,-4651.06070859,0.0001218,2]
[337733655,1725993031617,-5179.65255933,0.0001218,2]
[337733656,1725993031629,-672.3424,0.0001218,2]
[337733657,1725993031640,-2031.63252722,0.0001218,2]
[337733658,1725993031652,-3406.03390733,0.0001218,2]
[337733659,1725993031663,-85244.22410807,0.0001218,2]
[337733660,1725993031674,-1180.16,0.00012192,2]
[337733661,1725993031683,-167.39,0.000122,2]
[337733662,1725993031693,-230.27365888,0.00012403,2]
[337733663,1725993031702,-1517.42,0.00012403,2]
[337733664,1725993031711,-310.46,0.000125,2]
[337733665,1725993031720,-1007.68,0.000125,2]
[337733666,1725993031730,-499.99,0.000125,2]
[337733667,1725993031739,-195.51,0.000125,2]
[337733668,1725993031748,-152.0,0.00012577,3]
[337733669,1725993031760,-421.34449989,0.00012623,2]
[337733670,1725993031769,-1000.0,0.000127,2]
[337733671,1725993031779,-150.0,0.00012726,2]
[337733672,1725993031788,-553.0,0.00012726,2]
[337733673,1725993031799,-1900.0,0.00012726,2]
[337733674,1725993031808,-248.0,0.00012726,2]
[337733675,1725993031818,-1119.0,0.00012726,2]
[337733676,1725993031829,-3342.0,0.00012726,2]
[337733677,1725993031838,-1922.0,0.00012726,2]
[337733678,1725993031848,-805.0,0.00012726,2]
[337733679,1725993031858,-1079.0,0.00012726,2]
[337733680,1725993031867,-1260.0,0.00012726,2]
[337733681,1725993031877,-5858.0,0.00012726,2]
[337733682,1725993031887,-1547.0,0.00012726,2]
[337733683,1725993031896,-447.0,0.00012726,2]
[337733684,1725993031905,-624.0,0.00012726,2]
[337733702,1725993032121,-150.0,0.00012726,2]
[337733704,1725993032132,-150.0,0.0001273,2]
[337733706,1725993032142,-150.0,0.00012732,2]
[337733708,1725993032152,-150.0,0.00012743,2]
[337733710,1725993032162,-150.0,0.00012756,2]
[337733712,1725993032171,-150.0,0.00012786,2]
[337733714,1725993032181,-150.0,0.00012798,2]
[337733716,1725993032190,-2500.0,0.000128,2]
[337733718,1725993032200,-150.34,0.000128,2]
[337733720,1725993032210,-214.0223,0.000128,2]
[337733722,1725993032219,-3895.09650359,0.000128,2]
[337733727,1725993032380,-1367.57781629,0.000128,2]
[337733728,1725993032391,-637.70410917,0.000128,2]
[337733729,1725993032402,-9678.66962938,0.000128,2]
[337733730,1725993032414,-2502.8859845,0.000128,2]
[337733731,1725993032423,-1781.0,0.000128,2]
[337733732,1725993032433,-346.15597548,0.000128,2]
[337733733,1725993032443,-743.32701698,0.000128,2]
[337733734,1725993032454,-363.76455997,0.000128,2]
[337733735,1725993032465,-210.02582329,0.000128,2]
[337733736,1725993032475,-150.0,0.00012825,2]
[337733737,1725993032484,-150.0,0.00012829,2]
[337733738,1725993032493,-150.0,0.00012832,2]
[337733739,1725993032503,-175.76798512,0.00012834,2]
[337733740,1725993032512,-150.0,0.00012842,2]
[337733741,1725993032521,-150.0,0.00012845,2]
[337733742,1725993032531,-216.30053767,0.00012849,2]
[337733743,1725993032541,-500.0,0.0001285,2]
[337733744,1725993032550,-158.856,0.0001285,2]
[337733745,1725993032562,-167.663,0.0001285,2]
[337733746,1725993032572,-500.0,0.00012859,2]
[337733747,1725993032581,-4280.6886869,0.00012859,2]
[337733748,1725993032593,-2131.0913131,0.00012859,2]
[337733749,1725993032602,-76.52954124,0.00012863,2]
[337733750,1725993032613,-73.47045876,0.00012863,2]
[337733751,1725993032622,-570.97993394,0.0001287,2]
[337733752,1725993032633,-375.98806606,0.0001287,2]
[337733753,1725993032643,-923.34521794,0.0001287,2]
[337733754,1725993032657,-23.62278206,0.0001287,2]
[337733755,1725993032675,-159.935488,0.00012873,2]
[337733756,1725993032688,-500.0,0.00012873,2]
[337733757,1725993032698,-500.0,0.00012877,2]
[337733758,1725993032708,-150.0,0.00012877,2]
[337733759,1725993032718,-150.0,0.00012883,2]
[337733760,1725993032729,-150.0,0.0001289,2]
[337733761,1725993032739,-946.96801,0.0001289,2]
[337733762,1725993032749,-160.95,0.0001289,2]
[337733763,1725993032761,-1780.58989267,0.00012892,2]
[337733764,1725993032774,-1920.18010733,0.00012892,2]
[337733765,1725993032785,-500.0,0.00012899,2]
[337733766,1725993032795,-500.0,0.00012899,2]
[337733767,1725993032805,-500.0,0.00012899,2]
[337733768,1725993032815,-500.0,0.00012899,2]
[337733769,1725993032825,-181.93130415,0.00012899,2]
[337733770,1725993032837,-508.60840421,0.00012899,2]
[337733771,1725993032847,-171.9257,0.000129,2]
[337733772,1725993032856,-2602.28005015,0.000129,2]
[337733773,1725993032868,-966.21666469,0.000129,2]
[337733774,1725993032879,-741.8811006,0.000129,2]
[337733775,1725993034016,263.11,0.00011835,2]
[337733782,1725993037533,-918.803945,0.00012726,2]
[337733788,1725993037693,-282.75145112,0.00012726,2]
[337733789,1725993037712,-2116.2561326,0.00012726,2]
[337733790,1725993037733,-842.18847128,0.00012726,2]
[337733791,1725993037744,-5828.8551537,0.000129,2]
[337733792,1725993037761,-576.87446552,0.000129,2]
[337733793,1725993037772,-250.485,0.000129,2]
[337733794,1725993037783,-40945.65488438,0.000129,2]
[337733795,1725993037841,-52852.57891899,0.000129,2]
[337733796,1725993037853,-1537.29708456,0.000129,2]
[337733797,1725993037865,-2806.8,0.000129,2]
[337733798,1725993037874,-456.9474,0.000129,2]
[337733799,1725993037883,-2074.8742,0.000129,2]
[337733800,1725993037893,-1209.4532,0.000129,2]
[337733801,1725993037902,-1263.1381,0.000129,2]
[337733802,1725993037912,-25364.5271,0.000129,2]
[337733803,1725993037924,-5284.2917,0.000129,2]
[337733804,1725993037936,-671894.34069843,0.000129,2]
[337733805,1725993038097,-902.63081299,0.000129,2]
[337733806,1725993038109,-646.2499905,0.000129,2]
[337733807,1725993038121,-615.002,0.000129,2]
[337733808,1725993038132,-2698.3,0.000129,2]
[337733823,1725993039615,-687.02021086,0.00012726,2]
[337733824,1725993039627,-456.97978914,0.00012726,2]
[337733825,1725993039638,-550.54333182,0.000129,2]
[337733831,1725993040833,-1383.75,0.000129,2]
[337733832,1725993040845,-477.21,0.000129,2]
[337733833,1725993040857,-471.5656,0.000129,2]
[337733834,1725993040868,-719.26763437,0.000129,2]
[337733835,1725993040879,-395.92311807,0.000129,2]
[337733836,1725993040890,-625.96902228,0.000129,2]
[337733837,1725993040910,-270.54,0.000129,2]
[337733838,1725993040979,-474.3715655,0.000129,2]
[337733885,1725993042633,-500.0,0.00012899,2]
[337733886,1725993042643,-369.92188152,0.00012899,2]
[337733888,1725993042653,-308.26745838,0.00012899,2]
[337733890,1725993042662,-1841.9490503,0.000129,2]
[337733894,1725993043279,-300.0,0.000129,2]
[337733895,1725993043295,-412548.6292,0.000129,2]
[337733896,1725993043306,-162093.26724315,0.000129,2]
[337733899,1725993045995,-2891.61435995,0.000129,2]
[337733927,1725993060663,500.0,0.00028,120]
[337733928,1725993060938,500.0,0.00028,120]
[337733929,1725993061207,500.0,0.00028,120]
[337733930,1725993061483,500.0,0.00028,120]
[337733931,1725993061751,500.0,0.00028,120]
[337733932,1725993062029,500.0,0.00028,120]
[337733933,1725993062330,500.0,0.00028,120]
[337733934,1725993062605,500.0,0.00028,120]
[337733935,1725993062950,500.0,0.00028,120]
[337733936,1725993063475,500.0,0.00028,120]
[337733937,1725993063749,500.0,0.00028,120]
[337733938,1725993064013,500.0,0.00028,120]
[337733939,1725993064297,500.0,0.00028,120]
[337733940,1725993064569,500.0,0.00028,120]
[337733941,1725993064841,567.11939026,0.00028,120]
[337733942,1725993090579,150.0,0.00023845,120]
[337733943,1725993092240,500.0,0.00028,120]
[337733944,1725993092547,500.0,0.00028,120]
[337733945,1725993092805,181.09531802,0.00028,120]
[337733946,1725993094341,156.68,0.00010959,2]
[337733947,1725993094921,1147.36,0.00028,120]
[337733948,1725993095172,1147.36,0.00028,120]
[337733949,1725993095432,1147.36,0.00028,120]
[337733950,1725993095721,1147.36,0.00028,120]
[337733951,1725993095987,1147.36,0.00028,120]
[337733952,1725993096269,1147.36,0.00028,120]
[337733953,1725993096554,1147.36,0.00028,120]
[337733954,1725993096810,1147.36,0.00028,120]
[337733955,1725993097085,1147.36,0.00028,120]
[337733956,1725993097341,1147.36,0.00028,120]
[337733957,1725993097631,1147.36,0.00028,120]
[337733958,1725993097874,1147.36,0.00028,120]
[337733959,1725993098135,1147.36,0.00028,120]
[337733960,1725993098386,1147.36,0.00028,120]
[337733961,1725993098633,1147.36,0.00028,120]
[337733962,1725993098889,1147.36,0.00028,120]
[337733963,1725993099495,1147.36,0.00028,120]
[337733964,1725993099780,1147.36,0.00028,120]
[337733965,1725993100058,1147.36,0.00028,120]
[337733966,1725993100373,1147.36,0.00028,120]
[337733967,1725993100662,1147.36,0.00028,120]
[337733968,1725993101286,1147.36,0.00028,120]
[337733969,1725993101613,1147.36,0.00028,120]
[337733970,1725993102168,1147.43478166,0.00028,120]
[337733971,1725993150723,153.8,0.00010134,2]
[337733972,1725993190087,500.0,0.00028,120]
[337733973,1725993190434,500.0,0.00028,120]
[337733974,1725993191038,620.2746,0.00028,120]
[337733975,1725993210949,150.0,0.00024384,120]
[337733976,1725993211543,366.61710988,0.00028,120]
[337733978,1725993358971,500.0,0.00028,120]
[337733979,1725993359247,500.0,0.00028,120]
[337733980,1725993359518,168.1191664,0.00028,120]
[337733981,1725993362259,500.0,0.00028,120]
[337733982,1725993362665,500.0,0.00028,120]
[337733983,1725993362749,500.0,0.00028,120]
[337733984,1725993363343,500.0,0.00028,120]
[337733985,1725993363639,500.0,0.00028,120]
[337733986,1725993363943,500.0,0.00028,120]
[337733987,1725993364330,500.0,0.00028,120]
[337733988,1725993364664,500.0,0.00028,120]
[337733989,1725993364974,500.0,0.00028,120]
[337733990,1725993365227,500.0,0.00028,120]
[337733991,1725993365404,641.41827228,0.00028,120]
[337733992,1725993365762,500.0,0.00028,120]
[337733993,1725993366054,500.0,0.00028,120]
[337733994,1725993366636,500.0,0.00028,120]
[337733995,1725993366912,500.0,0.00028,120]
[337733996,1725993367366,500.0,0.00028,120]
[337733997,1725993367647,500.0,0.00028,120]
[337733998,1725993367963,305.37116495,0.00028,120]
[337733999,1725993390780,486.08538817,0.00028,120]
[337734000,1725993456550,195.59,0.00011991,2]
[337734001,1725993502286,500.0,0.00028,120]
[337734002,1725993507877,750.0,0.00011,2]
[337734003,1725993510558,150.0,0.00020714,120]
[337734004,1725993570734,150.0,0.00020433,120]
[337734007,1725993671248,153.8,0.00010044,2]
[337734009,1725993691120,150.0,0.00025955,120]
[337734010,1725993722777,250.0,0.00011972,2]
[337734011,1725993810541,150.0,0.00017779,120]
[337734012,1725993931280,150.0,0.00020839,120]
[337734082,1725993990515,150.0,0.0002319,120]
[337734083,1725994024044,207.12,0.0001189,2]
[337734133,1725994050831,150.0,0.00017699,120]
[337734134,1725994093226,1000.0,0.00011892,2]
[337734135,1725994110524,150.0,0.00015883,120]
[337734136,1725994170615,150.0,0.00018675,120]
[337734137,1725994219440,153.8,9.985e-05,2]